bitfinex/quotes_ETHUSD_20220118
["timestamp","ask_amount","ask_price","bid_price","bid_amount"]
[1642481723845,0.00113685,3181.5,3181.4,1.7537614]
[1642481724849,0.00113685,3181.5,3181.4,1.6280614]
[1642481727801,0.00113685,3181.5,3181.4,1.46958353]
[1642481728509,0.00113685,3181.5,3181.4,0.46958353]
[1642481728702,0.00113685,3181.5,3181.4,0.02258353]
[1642481730868,0.00113685,3181.5,3181.4,0.18027523]
[1642481732872,0.12683685,3181.5,3181.4,0.18027523]
[1642481733501,0.00113685,3181.5,3181.4,0.1576917]
[1642481734198,2.50720216,3181.5,3181.4,0.1576917]
[1642481734998,0.00113685,3181.5,3181.4,0.1576917]
[1642481735398,2.50606531,3181.6,3181.4,0.1576917]
[1642481735799,2.50606531,3181.7,3181.4,0.1576917]
[1642481736200,2.508339,3181.7,3181.4,0.1576917]
[1642481737850,0.00227369,3181.7,3181.4,0.1576917]
[1642481738049,0.12797369,3181.7,3181.4,0.1576917]
[1642481739053,2.50606531,3181.6,3181.4,0.1576917]
[1642481739450,0.00113685,3181.5,3181.4,0.1576917]
[1642481745248,2.25720216,3181.7,3181.4,0.1576917]
[1642481745849,2.77196916,3181.9,3181.4,0.1576917]
[1642481746249,0.00170527,3181.8,3181.4,0.1576917]
[1642481746650,0.00113684,3181.7,3181.4,0.1576917]
[1642481747257,0.1257,3181.6,3181.4,0.1576917]
[1642481748057,0.1257,3181.6,3181.5,0.5]
[1642481748500,3.3257,3181.6,3181.4,0.1576917]
[1642481748697,3.3257,3181.6,3181.3,15.003]
[1642481748899,1.61280332,3181.5,3181.3,15.003]
[1642481749099,4.3257,3181.4,3181.3,15.003]
[1642481749403,4.6257,3181.4,3181.3,15.003]
[1642481749598,0.4257,3181.4,3181.3,15.00413685]
[1642481749998,0.1257,3181.4,3181.3,15.00413685]
[1642481750205,1.73850332,3181.4,3181.3,15.00413685]
[1642481751006,6.48850332,3181.4,3180.3,1.0867175]
[1642481751206,2.46229065,3180.6,3180.3,1.2124175]
[1642481751406,2.46229065,3180.6,3180.3,1.0867175]
[1642481752256,2.74597341,3180.5,3180.3,1.0867175]
[1642481752459,2.74597341,3180.5,3180.0,2.32681442]
[1642481752658,2.74597341,3180.5,3180.0,0.5]
[1642481752856,2.74597341,3180.5,3180.1,0.00682108]
[1642481753455,2.90864919,3180.4,3180.1,0.00682108]
[1642481754959,4.52132734,3180.4,3180.1,0.00682108]
[1642481756899,2.90864919,3180.4,3180.1,0.00682108]
[1642481759199,2.7672225,3180.4,3180.1,0.00682108]
[1642481759400,3.17167341,3180.5,3180.1,0.00682108]
[1642481759659,2.75041716,3180.4,3180.1,0.00682108]
[1642481761349,2.75041716,3180.4,3179.4,0.1257]
[1642481761350,2.75041716,3180.4,3179.5,0.01023162]
[1642481761550,0.1257,3180.4,3179.5,0.01023162]
[1642481764502,0.1257,3180.4,3179.6,0.05895941]
[1642481764701,2.74597341,3180.5,3179.6,0.05895941]
[1642481764902,2.74597341,3180.5,3179.7,0.00909478]
[1642481765498,2.74597341,3180.5,3179.6,0.0096632]
[1642481766400,2.68785587,3180.4,3179.6,0.95807155]
[1642481766600,2.68785587,3180.4,3179.6,1.08377155]
[1642481766801,2.68785587,3180.4,3179.7,0.00909478]
[1642481767861,2.68785587,3180.4,3179.9,18.39]
[1642481768061,2.68785587,3180.4,3180.0,1.5727]
[1642481768260,2.68785587,3180.4,3180.0,1.61505626]
[1642481769064,2.68785587,3180.4,3180.0,1.91505626]
[1642481769463,1.30234696,3180.6,3180.0,3.16346461]
[1642481769464,3.99020283,3180.6,3180.0,3.16346461]
[1642481769662,3.99020283,3180.6,3180.0,3.16670967]
[1642481770762,2.68785587,3180.5,3180.0,4.71033838]
[1642481770998,2.68785587,3180.5,3180.0,4.41181856]
[1642481771200,2.68785587,3180.5,3180.0,4.37212657]
[1642481771397,2.68785587,3180.5,3180.0,4.24642657]
[1642481771798,2.68785587,3180.5,3180.0,1.75438951]
[1642481772201,2.68785587,3180.5,3180.0,0.75438951]
[1642481773404,2.68785587,3180.5,3180.0,0.91328641]
[1642481773605,2.68785587,3180.5,3180.0,0.75438951]
[1642481773805,2.68785587,3180.5,3180.0,19.14438951]
[1642481774005,2.68785587,3180.5,3180.0,19.44438951]
[1642481774205,2.68785587,3180.5,3180.1,1.0]
[1642481774407,2.68785587,3180.5,3180.2,0.447]
[1642481774652,2.68785587,3180.5,3180.2,0.45325266]
[1642481774847,2.68785587,3180.5,3180.3,0.00568423]
[1642481788408,2.68785587,3180.5,3180.4,0.1257]
[1642481788607,2.68785587,3180.5,3180.4,19.9627]
[1642481788806,2.68785587,3180.5,3180.4,20.29838708]
[1642481789106,0.1257,3180.9,3180.4,20.29838708]
[1642481789506,1.47260249,3180.8,3180.5,0.00454739]
[1642481789754,2.72708858,3180.8,3180.6,0.447]
[1642481790157,2.72708858,3180.8,3180.7,0.00341054]
[1642481794406,5.41445429,3180.8,3180.7,0.00341054]
[1642481795608,5.71445429,3180.8,3180.7,0.00341054]
[1642481795810,5.71445429,3180.8,3180.0,0.6257]
[1642481796007,5.71445429,3180.8,3180.1,0.00682108]
[1642481797157,2.68736571,3180.7,3180.1,0.00682108]
[1642481798758,2.91607064,3180.6,3180.1,0.00682108]
[1642481798956,0.01202558,3180.3,3179.3,0.68781831]
[1642481799159,0.1257,3180.2,3179.3,0.68781831]
[1642481799558,1.24470126,3180.0,3179.3,0.68781831]
[1642481799758,2.5909318,3179.4,3179.3,0.68781831]
[1642481800157,2.5909318,3179.4,3179.3,0.68895516]
[1642481800558,2.5909318,3179.4,3179.3,0.00113685]
[1642481801004,2.5909318,3179.4,3178.9,0.00341054]
[1642481802805,2.5909318,3179.4,3178.9,0.69122885]
[1642481803204,2.5909318,3179.4,3179.0,0.00284212]
[1642481803805,2.5909318,3179.4,3179.1,1.56125929]
[1642481804004,2.5909318,3179.4,3179.1,1.86125929]
[1642481804204,2.5909318,3179.4,3179.2,0.00170527]
[1642481804851,2.68833619,3179.3,3179.2,0.00170527]
[1642481805052,2.68833619,3179.3,3179.2,0.30170527]
[1642481810006,2.5909318,3179.4,3179.2,0.30170527]
[1642481810207,1.42493327,3179.4,3179.2,0.30170527]
[1642481810408,0.12807369,3179.9,3179.2,0.30170527]
[1642481810608,0.00227369,3179.9,3179.2,0.30170527]
[1642481810808,0.00170527,3179.8,3179.2,0.30170527]
[1642481811209,0.00113684,3179.7,3179.2,0.30170527]
[1642481811608,1.39977417,3179.3,3179.2,0.30170527]
[1642481811808,1.38433415,3179.6,3179.2,0.30170527]
[1642481812754,1.3633998,3179.5,3179.2,0.30170527]
[1642481825900,0.00170527,3179.8,3179.3,0.0494011]
[1642481826203,0.00113684,3179.7,3179.3,1.0]
[1642481826600,0.00170527,3179.8,3179.3,1.0]
[1642481827003,1.09945732,3179.7,3179.2,3.2239676]
[1642481827264,1.09945732,3179.7,3179.3,1.0]
[1642481827459,1.09832048,3179.7,3179.3,1.0]
[1642481827756,1.09832048,3179.7,3179.2,0.30170527]
[1642481828556,1.09832048,3179.7,3179.2,0.74870527]
[1642481831201,1.09832048,3179.7,3179.3,0.1258]
[1642481832505,1.09832048,3179.7,3179.2,0.74870527]
[1642481832905,1.09832048,3179.7,3179.2,0.44870527]
[1642481833511,0.1258,3179.6,3179.2,0.00170527]
[1642481833907,0.1258,3179.6,3178.9,0.00341054]
[1642481834107,0.1258,3179.6,3178.7,0.00454739]
[1642481834782,2.68843349,3179.5,3178.7,1.56580668]
[1642481834972,1.46896667,3179.3,3178.7,1.56580668]
[1642481835168,0.1258,3179.2,3178.8,0.00397897]
[1642481836675,2.68843349,3179.1,3178.5,0.00568424]
[1642481836874,0.1258,3179.0,3178.5,0.00568424]
[1642481837480,0.1258,3179.0,3178.4,0.00625266]
[1642481837677,2.68843349,3179.1,3178.4,0.00625266]
[1642481837877,2.98843349,3179.1,3178.4,0.00625266]
[1642481838077,2.98843349,3179.1,3178.6,0.31266473]
[1642481838499,2.98843349,3179.1,3178.7,0.00454739]
[1642481839103,1.29468369,3178.8,3178.7,0.00454739]
[1642481840603,1.29468369,3178.8,3178.7,1.56541657]
[1642481841202,1.29468369,3178.8,3178.7,1.8780813]
[1642481841604,1.29468369,3178.8,3178.7,0.31721212]
[1642481842657,3.98335082,3178.8,3178.7,0.31721212]
[1642481844254,3.88335082,3178.8,3178.7,0.31721212]
[1642481846608,3.88335082,3178.8,3178.7,0.56721212]
[1642481847008,2.68866713,3178.8,3178.7,0.26721212]
[1642481847412,2.68866713,3178.8,3178.5,0.39301212]
[1642481847917,1.15327926,3178.7,3178.5,0.39301212]
[1642481848111,2.45817722,3178.7,3178.5,0.39301212]
[1642481848713,2.45817722,3178.7,3178.5,0.26721212]
[1642481854806,0.1258,3179.4,3178.5,0.26721212]
[1642481855006,0.1258,3179.5,3178.5,0.26721212]
[1642481855206,0.00341054,3179.3,3178.5,0.26721212]
[1642481855405,0.00397896,3179.4,3178.6,0.1258]
[1642481855605,1.259,3179.6,3178.6,0.1258]
[1642481855606,0.00284212,3179.2,3178.6,0.1258]
[1642481855808,1.52867147,3179.0,3178.6,0.1258]
[1642481856005,3.03644397,3179.0,3178.7,0.26721212]
[1642481856205,0.00113685,3178.9,3178.7,0.26721212]
[1642481859658,0.00113685,3178.9,3178.8,0.1258]
[1642481860909,0.00113685,3178.9,3178.8,0.39301212]
[1642481861106,0.00113685,3178.9,3178.8,0.69301212]
[1642481861307,0.00113685,3178.9,3178.8,0.56721212]
[1642481864208,2.68979336,3178.9,3178.8,0.56721212]
[1642481867970,2.68979336,3178.9,3178.2,18.39]
[1642481867971,5.7,3178.6,3177.7,1.0]
[1642481868168,0.01229795,3178.0,3177.6,3.82261134]
[1642481868419,0.01229795,3178.0,3177.6,2.03604662]
[1642481868420,3.5,3177.9,3177.6,2.03604662]
[1642481868613,0.1258,3177.8,3177.6,2.03604662]
[1642481869313,2.93503835,3177.7,3177.6,2.03604662]
[1642481869516,3.06083835,3177.7,3177.6,1.71101947]
[1642481869714,3.06083835,3177.7,3177.6,1.71215632]
[1642481870518,3.06083835,3177.7,3177.6,0.00113685]
[1642481870917,3.06083835,3177.7,3177.2,0.00341054]
[1642481871117,2.93503835,3177.7,3177.2,0.00341054]
[1642481872153,5.62369486,3177.7,3177.2,0.00341054]
[1642481873558,5.62369486,3177.7,3176.8,0.00568424]
[1642481873758,5.62369486,3177.7,3176.9,0.1258]
[1642481873958,5.62369486,3177.7,3176.8,0.1258]
[1642481874162,2.68865651,3177.6,3177.0,0.00454739]
[1642481874359,2.68865651,3177.6,3176.8,0.1258]
[1642481874360,2.68865651,3177.6,3176.9,0.00511581]
[1642481874560,2.68865651,3177.6,3177.0,0.1258]
[1642481874762,1.3307365,3177.2,3176.9,0.00511581]
[1642481874960,1.3307365,3177.2,3177.1,0.00397897]
[1642481875160,1.3307365,3177.2,3176.9,0.00511581]
[1642481877712,1.3307365,3177.2,3176.6,0.00682108]
[1642481879013,1.3307365,3177.2,3176.6,0.30682108]
[1642481879213,2.69004805,3177.1,3176.6,0.3]
[1642481879415,2.69004805,3177.1,3176.7,0.00625266]
[1642481879654,2.69004805,3177.1,3176.7,0.30625266]
[1642481879856,5.5108193,3177.1,3176.7,0.30625266]
[1642481880056,2.69004805,3177.1,3176.8,0.00568424]
[1642481880256,5.68078924,3177.1,3176.8,0.00568424]
[1642481880657,5.98078924,3177.1,3176.4,0.00795793]
[1642481880858,6.86968924,3177.1,3176.4,0.00795793]
[1642481882059,4.00484805,3177.1,3176.4,0.00795793]
[1642481882661,2.69004805,3177.0,3176.4,0.00795793]
[1642481882962,1.46229888,3176.5,3176.4,0.00795793]
[1642481883163,2.55704019,3176.5,3176.4,0.00795793]
[1642481884110,1.61267815,3177.5,3176.4,0.00795793]
[1642481884310,1.61267815,3177.5,3176.4,0.13385793]
[1642481884509,1.61267815,3177.5,3176.5,0.1259]
[1642481884714,1.61267815,3177.5,3176.5,0.13328951]
[1642481884912,1.61267815,3177.5,3176.6,0.00682108]
[1642481885111,1.08832022,3177.1,3176.6,0.00682108]
[1642481885312,2.23481254,3177.1,3176.6,0.00682108]
[1642481885514,2.23481254,3177.1,3176.4,0.1259]
[1642481885515,2.23481254,3177.1,3176.5,0.00738951]
[1642481886713,1.08832022,3177.1,3176.5,0.00738951]
[1642481886913,2.69024645,3177.0,3176.5,0.00738951]
[1642481887156,2.69024645,3177.0,3176.6,0.1259]
[1642481887556,2.69024645,3177.0,3176.7,0.00625266]
[1642481888157,2.69024645,3177.0,3176.6,0.00682108]
[1642481888358,2.69024645,3177.0,3176.5,0.00738951]
[1642481888559,2.69024645,3177.0,3176.6,0.1259]
[1642481889057,2.69024645,3177.0,3176.7,0.00625266]
[1642481889658,2.69024645,3177.0,3176.6,0.00682108]
[1642481890259,2.69024645,3177.0,3176.5,0.00738951]
[1642481890910,2.69024645,3177.0,3176.4,0.00795793]
[1642481891106,2.69024645,3177.0,3176.2,0.00909478]
[1642481891820,2.69024645,3177.0,3176.2,19.39909478]
[1642481892005,2.69024645,3177.0,3176.3,3.02375716]
[1642481892210,2.69024645,3177.0,3176.3,3.33228351]
[1642481892415,2.69024645,3177.0,3176.9,1.55714879]
[1642481892609,0.1259,3177.6,3176.9,1.55714879]
[1642481892810,0.1259,3177.6,3176.9,1.5622646]
[1642481893009,0.1259,3177.6,3177.0,0.00454739]
[1642481893613,2.72093786,3177.5,3177.0,0.00454739]
[1642481893811,0.1258,3177.4,3177.0,0.00454739]
[1642481896065,2.72093786,3177.5,3177.0,0.00454739]
[1642481896265,2.69005391,3177.3,3177.0,0.00454739]
[1642481896665,2.69005391,3177.4,3177.0,0.30454739]
[1642481896864,2.69005391,3177.4,3176.7,0.00625266]
[1642481897064,2.69005391,3177.4,3177.1,0.00397897]
[1642481897264,2.69005391,3177.4,3176.6,0.00682108]
[1642481897864,2.69005391,3177.5,3176.6,0.00682108]
[1642481898064,2.72252369,3176.8,3176.6,0.00682108]
[1642481899417,1.32885139,3176.8,3176.6,0.00682108]
[1642481900321,1.31930914,3176.9,3176.6,0.00682108]
[1642481902155,1.52073163,3176.8,3176.6,0.00682108]
[1642481902560,4.21102088,3176.8,3176.6,0.00682108]
[1642481902964,2.69028925,3176.8,3176.6,0.00682108]
[1642481904961,1.47984684,3177.4,3176.6,0.00682108]
[1642481905161,0.1259,3177.4,3176.6,18.39682108]
[1642481905564,0.1259,3177.4,3176.7,1.00625266]
[1642481905761,2.69028925,3177.5,3176.7,1.00625266]
[1642481906006,2.69028925,3177.3,3176.8,0.00568424]
[1642481907211,0.1259,3177.6,3176.8,0.00568424]
[1642481907212,2.69028925,3177.5,3176.8,0.00568424]
[1642481907412,1.18772049,3177.3,3176.8,0.00568424]
[1642481907712,1.18772049,3177.3,3176.8,18.39568424]
[1642481908117,1.18772049,3177.3,3177.0,18.39]
[1642481908315,1.18772049,3177.3,3177.0,18.69]
[1642481908516,1.18772049,3177.3,3177.1,1.30397897]
[1642481908517,1.08772049,3177.3,3177.1,1.30397897]
[1642481908717,2.69028925,3177.2,3177.1,0.30397897]
[1642481908917,2.69028925,3177.2,3177.1,0.3]
[1642481909116,2.69028925,3177.2,3176.8,1.3]
[1642481909517,2.69028925,3177.2,3176.9,0.00511581]
[1642481913172,2.69028925,3177.2,3176.8,0.00568424]
[1642481913421,2.69028925,3177.2,3177.0,0.02444541]
[1642481913809,2.69028925,3177.2,3177.1,0.00397897]
[1642481914409,2.69028925,3177.5,3177.1,0.00397897]
[1642481914610,0.1258,3177.4,3177.1,0.00397897]
[1642481915008,1.17685758,3177.2,3177.1,0.00397897]
[1642481916609,3.86714683,3177.2,3177.1,0.00397897]
[1642481926065,2.69028925,3177.2,3177.1,0.00397897]
[1642481927566,2.69028925,3177.6,3177.1,0.00397897]
[1642481927767,1.53217182,3177.4,3177.1,0.00397897]
[1642481929223,2.69028925,3177.3,3177.1,0.00397897]
[1642481930026,2.69028925,3177.3,3177.1,0.12977897]
[1642481930224,2.69028925,3177.3,3177.2,0.447]
[1642481930424,2.69028925,3177.3,3177.2,22.01568773]
[1642481930627,2.69028925,3177.3,3177.2,20.14041054]
[1642481931427,1.47107512,3177.5,3177.2,20.14041054]
[1642481931630,1.47107512,3177.5,3177.3,1.0]
[1642481931927,1.47107512,3177.5,3177.4,0.0022737]
[1642481933563,1.47107512,3177.5,3177.4,0.0267095]
[1642481936308,4.16097483,3177.5,3177.4,0.0267095]
[1642481938516,4.16097483,3177.5,3177.4,0.0022737]
[1642481938716,5.49995534,3177.5,3177.4,0.0022737]
[1642481941368,5.62575534,3177.5,3177.4,0.0022737]
[1642481941970,5.92575534,3177.5,3177.4,0.0022737]
[1642481946519,5.62575534,3177.5,3177.4,0.0022737]
[1642481946918,5.49995534,3177.5,3177.4,0.0022737]
[1642481948868,5.49995534,3177.5,3176.8,0.00568424]
[1642481949671,2.68989971,3177.4,3176.8,0.00568424]
[1642481951012,2.68989971,3177.4,3176.9,0.1259]
[1642481951414,2.68989971,3177.4,3177.0,0.00454739]
[1642481953818,2.81569971,3177.4,3177.0,0.00454739]
[1642481954219,3.11569971,3177.4,3176.7,0.00625266]
[1642481954418,3.11569971,3177.4,3176.6,0.00682108]
[1642481954659,1.4646682,3176.2,3176.1,18.3996632]
[1642481954867,1.4646682,3176.2,3176.1,18.39]
[1642481955461,2.56342381,3176.2,3176.1,18.39]
[1642481955862,2.56342381,3176.2,3176.1,18.5159]
[1642481956067,2.56342381,3176.2,3176.1,18.39]
[1642481956267,2.56342381,3176.2,3176.1,19.39]
[1642481956467,2.56342381,3176.2,3176.1,19.69]
[1642481956671,2.56342381,3176.2,3176.1,19.8159]
[1642481957668,2.56342381,3176.2,3176.1,18.8159]
[1642481958427,1.4646682,3176.2,3176.1,18.8159]
[1642481958622,1.4646682,3176.2,3176.1,19.8159]
[1642481959023,1.4646682,3176.2,3176.1,19.69]
[1642481959623,1.4646682,3176.2,3176.1,18.69]
[1642481960026,1.4646682,3176.2,3176.1,0.3]
[1642481960225,1.4646682,3176.2,3175.8,18.5159]
[1642481960426,2.98800939,3176.2,3176.0,18.39]
[1642481960825,2.98800939,3176.2,3176.0,18.69]
[1642481961025,8.0557,3177.1,3176.1,18.39]
[1642481961426,4.4468,3177.1,3176.2,0.00909478]
[1642481961825,4.7468,3177.1,3176.2,0.00909478]
[1642481962026,4.4468,3177.1,3176.2,0.00909478]
[1642481962267,1.3007509,3176.3,3176.2,0.00909478]
[1642481963465,1.3007509,3176.3,3176.2,0.30909478]
[1642481963764,1.3007509,3176.3,3176.2,0.00909478]
[1642481964166,1.3007509,3176.3,3176.1,0.0096632]
[1642481964367,3.99187691,3176.3,3176.1,0.0096632]
[1642481965770,1.3007509,3176.3,3176.1,0.0096632]
[1642481966814,1.3007509,3176.3,3176.1,18.3996632]
[1642481967014,1.3007509,3176.3,3176.1,18.6996632]
[1642481967218,1.3007509,3176.3,3176.2,0.00909478]
[1642481967617,4.4468,3177.1,3176.2,0.00909478]
[1642481967827,1.39925473,3176.6,3176.2,0.00909478]
[1642481968018,1.39925473,3176.6,3176.2,0.30909478]
[1642481968420,1.39925473,3176.6,3176.3,0.00852635]
[1642481969019,1.39925473,3176.6,3176.1,0.0096632]
[1642481969219,1.5377332,3176.3,3176.1,0.0096632]
[1642481971068,1.39925473,3176.6,3176.1,0.0096632]
[1642481972166,1.47126861,3176.5,3176.1,0.0096632]
[1642481976215,1.39925473,3176.6,3176.1,0.0096632]
[1642481976416,1.39925473,3176.6,3176.2,0.05981843]
[1642481976815,1.39925473,3176.6,3176.3,0.00852635]
[1642481977268,2.68766094,3176.6,3176.2,0.00909478]
[1642481980773,2.68766094,3176.6,3176.0,0.01023162]
[1642481982420,2.69105758,3176.5,3176.0,0.01023162]
[1642481989619,2.69105758,3176.5,3175.8,0.01136847]
[1642481990622,2.68766094,3176.6,3175.8,0.01136847]
[1642481991423,2.68766094,3176.6,3175.9,0.05337315]
[1642481991621,2.69126306,3176.5,3175.9,0.05337315]
[1642481991827,2.69126306,3176.5,3176.0,0.01023162]
[1642481992274,2.69126306,3176.5,3175.8,0.01136847]
[1642481994179,2.69126306,3176.5,3175.8,0.31136847]
[1642481994380,2.69126306,3176.5,3175.8,0.01136847]
[1642481994879,2.69126306,3176.5,3175.7,0.01193689]
[1642481995379,1.5397971,3175.8,3175.7,0.01193689]
[1642481995580,1.5397971,3175.8,3175.7,1.01193689]
[1642481996024,1.5397971,3175.8,3175.7,0.01193689]
[1642481997630,1.2333,3176.4,3175.7,0.01193689]
[1642481998530,1.30484255,3176.0,3175.7,0.01193689]
[1642482000577,1.30484255,3176.0,3175.5,0.34982786]
[1642482000778,1.30484255,3176.0,3175.6,0.1259]
[1642482003179,1.30484255,3176.0,3175.5,1.04982786]
[1642482003618,1.30484255,3176.0,3175.5,0.04982786]
[1642482003818,1.2272858,3175.6,3175.5,0.04982786]
[1642482005925,1.30484255,3176.0,3175.5,0.04982786]
[1642482007168,1.34715164,3175.9,3175.5,0.04982786]
[1642482008172,1.34715164,3175.9,3175.5,1.04982786]
[1642482009179,1.34715164,3175.9,3175.5,0.04982786]
[1642482009575,1.34715164,3175.9,3175.7,0.04484863]
[1642482009774,1.34715164,3175.9,3175.7,0.08969726]
[1642482014675,1.34715164,3175.9,3175.5,0.3]
[1642482014869,1.34715164,3175.9,3175.8,0.04484863]
[1642482015269,1.34828848,3175.9,3175.8,0.04484863]
[1642482020120,1.22828848,3175.9,3175.8,0.04484863]
[1642482020318,1.22828848,3175.9,3175.8,0.08969726]
[1642482023677,3.91977367,3175.9,3175.8,0.08969726]
[1642482026320,1.22828848,3175.9,3175.8,0.08969726]
[1642482031074,3.91974389,3175.9,3175.8,0.08969726]
[1642482045270,3.91860705,3175.9,3175.8,0.08969726]
[1642482052882,4.21860705,3175.9,3175.8,0.08969726]
[1642482055485,3.91860705,3175.9,3175.8,0.08969726]
[1642482056525,2.69145541,3175.9,3175.8,0.08969726]
[1642482056829,1.73857815,3176.6,3175.8,0.08969726]
[1642482056830,0.1259,3176.6,3175.9,5.7]
[1642482057028,0.1259,3176.6,3176.1,0.06388769]
[1642482057226,0.1259,3176.6,3176.2,0.5729]
[1642482057627,1.36134999,3176.6,3176.4,0.08969726]
[1642482057827,1.36134999,3176.6,3176.5,2.9229]
[1642482058026,1.36134999,3176.6,3176.5,0.8729]
[1642482058326,1.61267815,3176.8,3176.5,20.3029]
[1642482058528,1.61267815,3176.8,3176.6,1.0]
[1642482058726,1.61267815,3176.8,3176.7,0.5729]
[1642482058930,1.34587761,3176.9,3176.7,0.5729]
[1642482059127,0.00113684,3176.8,3176.7,0.8729]
[1642482060530,0.00113684,3176.8,3176.7,0.747]
[1642482062934,0.00113684,3176.8,3176.7,0.83669726]
[1642482077883,2.6916866,3176.8,3176.7,0.83669726]
[1642482078559,0.00113684,3176.8,3176.7,0.83669726]
[1642482079561,2.6916866,3176.8,3176.7,0.83669726]
[1642482080162,0.00113684,3176.8,3176.7,0.83669726]
[1642482080961,2.6916866,3176.8,3176.7,0.83669726]
[1642482083501,2.6916866,3176.8,3176.7,0.85664876]
[1642482086725,0.00113684,3176.8,3176.7,0.85664876]
[1642482089231,2.47297094,3176.9,3176.7,0.85664876]
[1642482089679,2.47297094,3176.9,3176.7,0.7669515]
[1642482089874,2.47297094,3176.9,3176.3,0.46287143]
[1642482090080,0.1259,3176.8,3176.3,0.46287143]
[1642482090278,0.1259,3176.8,3176.4,0.00113685]
[1642482091076,2.69090922,3176.7,3176.4,0.00113685]
[1642482091275,0.1259,3176.6,3176.4,0.00113685]
[1642482092782,0.1259,3176.8,3176.4,0.00113685]
[1642482093633,0.00081801,3176.6,3176.4,0.00113685]
[1642482095132,0.00081801,3176.6,3176.5,0.04484863]
[1642482095732,0.00163602,3176.6,3176.5,0.04484863]
[1642482096335,0.12753602,3176.6,3176.5,0.04484863]
[1642482096735,0.12835403,3176.6,3176.5,0.04484863]
[1642482097881,4.43280747,3176.6,3176.5,0.04484863]
[1642482098077,4.30690747,3176.6,3176.5,0.04484863]
[1642482098680,2.69504733,3176.6,3176.5,0.04484863]
[1642482098881,2.82094733,3176.6,3176.5,0.04484863]
[1642482099481,4.43362548,3176.6,3176.5,0.04484863]
[1642482101829,4.43444349,3176.6,3176.5,0.04484863]
[1642482102432,2.82176534,3176.6,3176.5,0.04484863]
[1642482103834,2.82258335,3176.6,3176.5,0.04484863]
[1642482104033,2.82176534,3176.6,3176.5,0.04484863]
[1642482104234,4.4363671,3176.6,3176.5,0.04484863]
[1642482104434,4.3104671,3176.6,3176.5,0.04484863]
[1642482104880,4.31128511,3176.6,3176.5,0.04484863]
[1642482105180,4.3104671,3176.6,3176.5,0.04484863]
[1642482105385,2.69586534,3176.6,3176.5,0.04484863]
[1642482106390,4.61050879,3176.6,3176.5,0.04484863]
[1642482107388,1.91955151,3176.6,3176.5,0.04484863]
[1642482107990,1.91955151,3176.6,3176.5,0.04403062]
[1642482108190,1.91955151,3176.6,3176.4,0.00113685]
[1642482108627,2.99586534,3176.6,3176.5,0.04403062]
[1642482109529,2.69586534,3176.6,3176.5,0.04403062]
[1642482109732,4.31051804,3176.6,3176.5,0.04403062]
[1642482110635,2.69586534,3176.6,3176.5,0.04403062]
[1642482110938,2.70552839,3176.6,3176.5,0.04403062]
[1642482112197,2.71519144,3176.6,3176.5,0.04403062]
[1642482112985,2.72485449,3176.6,3176.5,0.04403062]
[1642482114287,2.73451754,3176.6,3176.5,0.04403062]
[1642482115187,2.74418059,3176.6,3176.5,0.04403062]
[1642482116137,2.75384364,3176.6,3176.5,0.04403062]
[1642482117239,2.76350669,3176.6,3176.5,0.04403062]
[1642482118140,2.77316974,3176.6,3176.5,0.04403062]
[1642482119240,2.78283279,3176.6,3176.5,0.04403062]
[1642482120281,2.79249584,3176.6,3176.5,0.04403062]
[1642482121285,2.80215889,3176.6,3176.5,0.04403062]
[1642482121687,2.75,3176.5,3175.7,0.1259]
[1642482121987,0.1259,3176.4,3175.8,0.00454739]
[1642482122188,0.1259,3176.5,3175.8,0.00454739]
[1642482122387,0.1259,3176.5,3175.6,0.00568424]
[1642482122686,1.31068492,3176.4,3175.6,0.00568424]
[1642482122887,4.0016422,3176.4,3175.6,0.00568424]
[1642482123536,1.16071438,3176.3,3175.6,0.00568424]
[1642482124140,3.85167166,3176.3,3175.6,0.00568424]
[1642482124738,3.97757166,3176.3,3175.6,0.00568424]
[1642482125137,2.69095728,3176.2,3175.6,0.00568424]
[1642482126741,2.69095728,3176.2,3175.3,0.00738951]
[1642482127038,2.70062033,3176.2,3175.4,0.1259]
[1642482127499,2.70062033,3176.2,3175.5,0.00625266]
[1642482128093,2.71028338,3176.2,3175.3,0.00738951]
[1642482128293,1.34087463,3175.6,3175.4,0.1259]
[1642482128492,1.52948512,3175.5,3175.4,0.1259]
[1642482128892,1.52948512,3175.5,3175.2,0.1259]
[1642482129093,1.52948512,3175.5,3175.2,0.12508199]
[1642482129297,1.52948512,3175.5,3175.3,0.00738951]
[1642482130094,1.53914817,3175.5,3175.3,0.00738951]
[1642482130292,1.66701145,3175.5,3175.3,0.00738951]
[1642482131136,1.6766745,3175.5,3175.3,0.00738951]
[1642482131337,1.80453778,3175.5,3175.3,0.00738951]
[1642482132135,1.81420083,3175.5,3175.3,0.00738951]
[1642482132335,1.94206411,3175.5,3175.3,0.00738951]
[1642482132938,0.41257899,3175.5,3175.3,0.00738951]
[1642482133237,0.42224204,3175.5,3175.3,0.00738951]
[1642482133437,7.498,3175.3,3175.2,0.00795793]
[1642482134037,7.498,3175.3,3175.1,0.00852635]
[1642482134237,1.11526452,3175.2,3175.1,0.00852635]
[1642482135586,1.2431278,3175.2,3175.1,0.00852635]
[1642482136390,1.25279085,3175.2,3175.1,0.00852635]
[1642482136591,1.38065413,3175.2,3175.1,0.00852635]
[1642482136791,1.38065413,3175.2,3175.1,0.13442635]
[1642482136993,1.50655413,3175.2,3175.1,0.00852635]
[1642482137391,1.51621718,3175.2,3175.1,0.00852635]
[1642482137591,1.51621718,3175.2,3174.8,0.01023163]
[1642482137592,1.64408046,3175.2,3174.8,0.01023163]
[1642482138191,1.15907667,3174.9,3174.8,0.01023163]
[1642482138837,1.15907667,3174.9,3174.6,0.01136847]
[1642482140438,1.15907667,3174.9,3174.6,0.31136847]
[1642482140638,1.15907667,3174.9,3174.5,0.0119369]
[1642482140936,1.15907667,3174.9,3174.7,0.01080005]
[1642482141141,1.15907667,3174.9,3174.5,0.0119369]
[1642482141344,1.55904814,3174.6,3174.4,0.01250532]
[1642482142788,1.68691142,3174.6,3174.4,0.01250532]
[1642482142989,1.68691142,3174.6,3174.4,0.00284227]
[1642482143790,1.8147747,3174.6,3174.4,0.00284227]
[1642482143989,1.8147747,3174.6,3174.2,0.00397912]
[1642482144793,1.8147747,3174.6,3174.0,0.00511596]
[1642482145192,2.79035593,3174.5,3174.0,0.00511596]
[1642482145392,0.126,3174.4,3174.0,0.00511596]
[1642482145591,1.18396221,3174.3,3174.0,0.00511596]
[1642482145790,1.18396221,3174.3,3173.9,0.00568439]
[1642482146032,1.18396221,3174.3,3173.8,0.00625281]
[1642482147541,1.18396221,3174.3,3173.8,0.30625281]
[1642482147940,1.18396221,3174.3,3173.9,0.00568439]
[1642482148140,1.18396221,3174.3,3173.9,0.30568439]
[1642482148642,1.18396221,3174.3,3174.0,0.00511596]
[1642482148643,1.44021438,3174.1,3174.0,0.00511596]
[1642482149242,1.44021438,3174.1,3173.7,0.00682123]